[Event "Niedersachsen-ch B 2024"]
[Site "Verden Aller"]
[Date "2024.01.04"]
[Round "2.26"]
[White "Freise, Linus"]
[Black "Direk, Oguzhan"]
[Result "1-0"]
[ECO "B23"]
[WhiteElo "1480"]
[BlackElo "1657"]
[Annotator "NA RC"]
[PlyCount "95"]
[EventDate "2024.01.01"]
[EventType "swiss"]
[EventCountry "GER"]
[SourceTitle "playchess.com"]
[Source "ChessBase"]
[SourceQuality "1"]
[TimeControl "40/5400+30:1800+30"]

1. e4 {[%emt 0:00:15]} c5 {[%emt 0:00:16]} 2. Nc3 {[%emt 0:00:09]} e6 {[%emt 0:01:42]} 3. f4 {[%emt 0:00:37]} d5 4. e5 {[%emt 0:00:20]} d4 {[%emt 0:01:45]} 5. Ne4 a6 {[%emt 0:05:30]} 6. Nf3 {[%emt 0:00:49]} h5 {[%emt 0:02:02]} 7. g3 {[%emt 0:02:24]} Nh6 {[%emt 0:00:41]} 8. Bg2 {[%emt 0:01:15]} Nf5 {[%emt 0:00:42]} 9. d3 {[%emt 0:01:44]} b5 {[%emt 0:03:04]} 10. Qe2 {[%emt 0:03:52]} Bb7 {[%emt 0:01:15]} 11. Neg5 {[%emt 0:00:30]} Bd5 {[%emt 0:03:53]} 12. Bd2 {[%emt 0:01:59]} Be7 {[%emt 0:03:20]} 13. O-O {[%emt 0:01:09]} Nc6 14. Bh3 {[%emt 0:07:41]} Bxg5 {[%emt 0:09:40]} 15. Nxg5 {[%emt 0:00:17]} Nce7 {[%emt 0:00:33]} 16. Bg2 {[%emt 0:05:41]} Bxg2 {[%emt 0:01:50]} 17. Kxg2 {[%emt 0:01:36]} Nd5 {[%emt 0:04:51]} 18. Kg1 {[%emt 0:00:55]} g6 {[%emt 0:02:01]} 19. Ne4 {[%emt 0:00:07]} Qb6 {[%emt 0:03:13]} 20. a3 {[%emt 0:04:35]} O-O {[%emt 0:02:19]} 21. Kh1 {[%emt 0:03:21]} Rac8 {[%emt 0:01:59]} 22. Rg1 {[%emt 0:00:19]} Kg7 {[%emt 0:01:19]} 23. b3 {[%emt 0:03:04]} Qc6 {[%emt 0:01:54]} 24. Qf3 {[%emt 0:01:22]} c4 {[%emt 0:07:13]} 25. bxc4 {[%emt 0:03:40]} bxc4 {[%emt 0:01:40]} 26. Bb4 {[%emt 0:00:09]} Nxb4 {[%emt 0:00:40]} 27. axb4 {[%emt 0:00:05]} Ne3 {[%emt 0:00:50]} 28. dxc4 {[%emt 0:04:10]} Qxc4 {[%emt 0:01:53]} 29. c3 {[%emt 0:02:21]} Nc2 {[%emt 0:01:50]} 30. Rac1 {[%emt 0:02:29]} d3 {[%emt 0:00:37]} 31. Rgd1 {[%emt 0:01:28]} Nxb4 {[%emt 0:05:03]} 32. cxb4 {[%emt 0:04:35]} Qxc1 {[%emt 0:00:01]} 33. Rxc1 {[%emt 0:00:05]} Rxc1+ {[%emt 0:00:08]} 34. Kg2 {[%emt 0:00:03]} d2 {[%emt 0:00:11]} 35. Nxd2 {[%emt 0:00:48]} Rc2 {[%emt 0:00:16]} 36. Qd3 {[%emt 0:00:06]} Rfc8 {[%emt 0:00:04]} 37. Qd4 {[%emt 0:01:28]} Ra2 {[%emt 0:00:21]} 38. Kh3 {[%emt 0:06:21]} Rcc2 {[%emt 0:00:04]} 39. Nf3 {[%emt 0:03:34]} Ra3 {[%emt 0:00:37]} 40. Ng5 {[%emt 0:03:24]} Raa2 {[%emt 0:00:21]} 41. Qg1 {[%emt 0:46:02]} Rab2 {[%emt 0:30:09]} 42. Nf3 {[%emt 0:16:41]} Rxb4 {[%emt 0:00:42]} 43. Kh4 {[%emt 0:00:00]} Rbb2 {[%emt 0:01:14]} 44. h3 {[%emt 0:00:00]} Rg2 {[%emt 0:00:47]} 45. Qa7 {[%emt 0:00:00]} Rb3 {[%emt 0:00:20]} 46. Ng5 {[%emt 0:00:00]} Rgxg3 {[%emt 0:00:36]} 47. Qxf7+ {[%emt 0:00:00]} Kh8 {[%emt 0:00:04]} 48. Qh7# {[%emt 0:00:36]} 1-0

[Event "Niedersachsen-ch B 2024"]
[Site "Verden Aller"]
[Date "2024.01.04"]
[Round "2.27"]
[White "Nechitaylo, Lev"]
[Black "Wildner, Jens Martin"]
[Result "1-0"]
[ECO "B10"]
[WhiteElo "1456"]
[BlackElo "1634"]
[Annotator "NA RC"]
[PlyCount "67"]
[EventDate "2024.01.01"]
[EventType "swiss"]
[EventCountry "GER"]
[SourceTitle "playchess.com"]
[Source "ChessBase"]
[SourceQuality "1"]
[TimeControl "40/5400+30:1800+30"]

1. e4 {[%emt 0:00:01]} c6 {[%emt 0:00:06]} 2. Nf3 {[%emt 0:00:09]} d5 {[%emt 0:00:14]} 3. e5 {[%emt 0:00:03]} Bg4 {[%emt 0:04:24]} 4. d4 {[%emt 0:00:18]} e6 {[%emt 0:00:14]} 5. Nc3 {[%emt 0:01:20]} c5 {[%emt 0:02:32]} 6. Be3 {[%emt 0:01:14]} cxd4 {[%emt 0:06:49]} 7. Bxd4 {[%emt 0:03:54]} Nc6 {[%emt 0:00:19]} 8. Bb5 {[%emt 0:00:32]} Nh6 {[%emt 0:05:25]} 9. h3 {[%emt 0:00:31]} Bxf3 {[%emt 0:00:26]} 10. Qxf3 {[%emt 0:00:23]} Nf5 {[%emt 0:00:20]} 11. Bxc6+ {[%emt 0:02:15]} bxc6 {[%emt 0:00:08]} 12. Rd1 {[%emt 0:07:46]} Nxd4 {[%emt 0:12:10]} 13. Rxd4 {[%emt 0:00:08]} Qb6 {[%emt 0:00:18]} 14. Rf4 {[%emt 0:07:45]} Qxb2 {[%emt 0:14:02]} 15. Rxf7 {[%emt 0:00:07]} Qc1+ {[%emt 0:00:35]} 16. Nd1 {[%emt 0:00:13]} Bb4+ {[%emt 0:00:14]} 17. Kf1 {[%emt 0:00:18]} Rf8 {[%emt 0:10:37]} 18. Rxf8+ {[%emt 0:00:31]} Bxf8 {[%emt 0:00:06]} 19. Qe2 {[%emt 0:01:37]} Rb8 {[%emt 0:04:09]} 20. g3 {[%emt 0:01:13]} Rb2 {[%emt 0:06:09]} 21. Kg2 {[%emt 0:02:45]} Rxc2 {[%emt 0:09:11]} 22. Qh5+ {[%emt 0:02:44]} Ke7 {[%emt 0:04:16]} 23. Qxh7 {[%emt 0:00:40]} Qd2 {[%emt 0:01:55]} 24. Rf1 {[%emt 0:02:07]} Rxa2 {[%emt 0:04:07]} 25. Qh4+ {[%emt 0:01:08]} Kd7 {[%emt 0:00:56]} 26. Qh5 {[%emt 0:00:31]} Be7 {[%emt 0:03:03]} 27. Qf7 {[%emt 0:01:58]} Qg5 {[%emt 0:08:33]} 28. Re1 {[%emt 0:03:17]} Ra1 {[%emt 0:01:59]} 29. f4 {[%emt 0:01:02]} Ra2+ {[%emt 0:00:46]} 30. Nf2 {[%emt 0:00:11]} Qh6 {[%emt 0:00:46]} 31. Rb1 {[%emt 0:00:11]} Ra6 {[%emt 0:00:40]} 32. Rb7+ {[%emt 0:00:07]} Kc8 {[%emt 0:00:05]} 33. Rxe7 {[%emt 0:00:21]} Qh8 {[%emt 0:00:09]} 34. Re8+ {[%emt 0:00:16]} 1-0

[Event "Niedersachsen-ch B 2024"]
[Site "Verden Aller"]
[Date "2024.01.04"]
[Round "2.29"]
[White "Sauer, Ben"]
[Black "Ristedt, Mathis"]
[Result "0-1"]
[ECO "C54"]
[WhiteElo "1427"]
[BlackElo "1601"]
[Annotator "NA RC"]
[PlyCount "136"]
[EventDate "2024.01.01"]
[EventType "swiss"]
[EventCountry "GER"]
[SourceTitle "playchess.com"]
[Source "ChessBase"]
[SourceQuality "1"]
[TimeControl "40/5400+30:1800+30"]

1. e4 {[%emt 0:00:03]} e5 {[%emt 0:00:06]} 2. Nf3 {[%emt 0:00:09]} Nc6 {[%emt 0:00:06]} 3. Bc4 {[%emt 0:00:10]} Bc5 {[%emt 0:00:07]} 4. c3 {[%emt 0:00:07]} Nf6 {[%emt 0:00:07]} 5. d3 {[%emt 0:00:13]} a6 {[%emt 0:00:23]} 6. O-O {[%emt 0:00:15]} d6 {[%emt 0:00:34]} 7. Bb3 {[%emt 0:00:28]} Ba7 {[%emt 0:00:16]} 8. Nbd2 {[%emt 0:00:22]} O-O {[%emt 0:00:33]} 9. Re1 {[%emt 0:00:11]} h6 {[%emt 0:01:39]} 10. Nf1 {[%emt 0:00:21]} Re8 {[%emt 0:00:20]} 11. Ng3 {[%emt 0:00:27]} Be6 {[%emt 0:09:33]} 12. Bc2 {[%emt 0:00:48]} d5 {[%emt 0:11:36]} 13. exd5 {[%emt 0:00:42]} Bxd5 {[%emt 0:00:44]} 14. Be3 {[%emt 0:02:05]} Bxe3 {[%emt 0:08:36]} 15. Rxe3 {[%emt 0:01:36]} Ng4 {[%emt 0:12:06]} 16. Re1 {[%emt 0:00:42]} Qd7 {[%emt 0:06:15]} 17. h3 {[%emt 0:01:30]} Nf6 {[%emt 0:00:09]} 18. Ne4 {[%emt 0:02:46]} Nxe4 {[%emt 0:10:31]} 19. dxe4 {[%emt 0:00:14]} Be6 {[%emt 0:00:15]} 20. Qe2 {[%emt 0:02:53]} Rad8 {[%emt 0:02:32]} 21. Rad1 {[%emt 0:04:05]} Qe7 {[%emt 0:00:18]} 22. Nd2 {[%emt 0:01:39]} Qg5 {[%emt 0:06:39]} 23. Nf3 {[%emt 0:01:45]} Qf6 {[%emt 0:02:00]} 24. b3 {[%emt 0:01:42]} Ne7 {[%emt 0:01:20]} 25. Nh2 {[%emt 0:05:00]} Ng6 {[%emt 0:02:53]} 26. Ng4 {[%emt 0:02:45]} Qg5 {[%emt 0:01:12]} 27. Kh2 {[%emt 0:04:12]} h5 {[%emt 0:07:55]} 28. Ne3 {[%emt 0:01:27]} Nf4 {[%emt 0:03:33]} 29. Qf3 {[%emt 0:01:27]} g6 {[%emt 0:04:15]} 30. c4 {[%emt 0:01:57]} c6 {[%emt 0:00:18]} 31. Qg3 {[%emt 0:03:03]} Qe7 {[%emt 0:03:09]} 32. f3 {[%emt 0:04:47]} Qa3 {[%emt 0:03:33]} 33. Rxd8 {[%emt 0:02:52]} Rxd8 {[%emt 0:00:04]} 34. Qg5 {[%emt 0:01:27]} Qa5 {[%emt 0:01:08]} 35. b4 {[%emt 0:01:22]} Qc7 {[%emt 0:00:35]} 36. Bb3 {[%emt 0:02:14]} Kg7 {[%emt 0:01:36]} 37. Qh4 {[%emt 0:02:14]} Rd2 {[%emt 0:00:51]} 38. Kh1 {[%emt 0:02:09]} Qd7 {[%emt 0:00:41]} 39. Rd1 {[%emt 0:04:30]} Rxd1+ {[%emt 0:00:25]} 40. Nxd1 {[%emt 0:02:23]} Qd2 {[%emt 0:00:24]} 41. Qf2 {[%emt 0:30:36]} Qxb4 {[%emt 0:31:02]} 42. Nb2 {[%emt 0:02:57]} Qc3 {[%emt 0:00:00]} 43. Na4 {[%emt 0:00:00]} Qb4 {[%emt 0:00:00]} 44. Nb2 {[%emt 0:00:00]} b5 {[%emt 0:00:00]} 45. cxb5 {[%emt 0:00:00]} axb5 {[%emt 0:00:00]} 46. Bxe6 {[%emt 0:00:00]} Nxe6 {[%emt 0:00:00]} 47. Kh2 {[%emt 0:00:00]} Qd4 {[%emt 0:00:00]} 48. Qxd4 {[%emt 0:00:00]} Nxd4 {[%emt 0:00:00]} 49. Kg1 {[%emt 0:00:00]} Kf6 {[%emt 0:00:00]} 50. Kf2 {[%emt 0:00:00]} Ke6 {[%emt 0:00:00]} 51. Nd3 {[%emt 0:00:00]} Kd6 {[%emt 0:00:00]} 52. Ke3 {[%emt 0:00:00]} c5 {[%emt 0:00:00]} 53. h4 {[%emt 0:00:00]} Nc6 {[%emt 0:00:00]} 54. a3 {[%emt 0:00:00]} c4 {[%emt 0:00:00]} 55. Nb4 {[%emt 0:00:00]} Nxb4 {[%emt 0:00:18]} 56. axb4 {[%emt 0:00:00]} f5 {[%emt 0:03:38]} 57. exf5 {[%emt 0:00:00]} gxf5 {[%emt 0:00:07]} 58. g3 {[%emt 0:00:00]} Kd5 {[%emt 0:00:57]} 59. f4 {[%emt 0:00:00]} e4 {[%emt 0:00:52]} 60. Ke2 {[%emt 0:00:00]} Kd4 {[%emt 0:00:25]} 61. Kd2 {[%emt 0:00:00]} c3+ {[%emt 0:00:36]} 62. Kc2 {[%emt 0:00:00]} e3 {[%emt 0:00:32]} 63. Kd1 {[%emt 0:00:00]} Kd3 {[%emt 0:01:12]} 64. g4 {[%emt 0:00:00]} c2+ {[%emt 0:00:14]} 65. Kc1 {[%emt 0:00:00]} e2 {[%emt 0:00:15]} 66. gxh5 {[%emt 0:00:00]} e1=Q+ {[%emt 0:04:05]} 67. Kb2 {[%emt 0:00:00]} Qb1+ {[%emt 0:00:00]} 68. Ka3 {[%emt 0:00:00]} c1=Q# {[%emt 0:00:00]} 0-1

[Event "Niedersachsen-ch B 2024"]
[Site "Verden Aller"]
[Date "2024.01.04"]
[Round "2.30"]
[White "Schoenfelder, Dennis Yoel"]
[Black "Weist, Hartmut"]
[Result "1-0"]
[ECO "B22"]
[WhiteElo "1370"]
[BlackElo "1581"]
[Annotator "NA RC"]
[PlyCount "97"]
[EventDate "2024.01.01"]
[EventType "swiss"]
[EventCountry "GER"]
[SourceTitle "playchess.com"]
[Source "ChessBase"]
[SourceQuality "1"]
[TimeControl "40/5400+30:1800+30"]

1. e4 {[%emt 0:00:03]} c5 {[%emt 0:00:02]} 2. c3 {[%emt 0:00:04]} d5 {[%emt 0:00:20]} 3. exd5 {[%emt 0:00:02]} Qxd5 {[%emt 0:00:12]} 4. d4 {[%emt 0:00:02]} Nc6 {[%emt 0:00:55]} 5. Nf3 {[%emt 0:00:19]} Bg4 6. Be2 {[%emt 0:00:56]} Nf6 {[%emt 0:03:47]} 7. h3 Bf5 {[%emt 0:03:04]} 8. O-O {[%emt 0:01:37]} e6 {[%emt 0:01:20]} 9. Be3 {[%emt 0:01:32]} Be7 {[%emt 0:03:10]} 10. c4 {[%emt 0:05:16]} Qd7 {[%emt 0:03:52]} 11. dxc5 {[%emt 0:01:07]} O-O {[%emt 0:01:08]} 12. a3 {[%emt 0:03:23]} a5 {[%emt 0:00:51]} 13. Nc3 {[%emt 0:00:50]} Rfd8 {[%emt 0:02:26]} 14. Qxd7 {[%emt 0:03:04]} Rxd7 {[%emt 0:00:34]} 15. Rfd1 {[%emt 0:00:54]} Rad8 {[%emt 0:01:03]} 16. Rxd7 Nxd7 {[%emt 0:03:14]} 17. Na4 {[%emt 0:05:32]} Bc2 {[%emt 1:13:02]} 18. Bd1 {[%emt 0:00:17]} Bxa4 {[%emt 0:00:00]} 19. Bxa4 {[%emt 0:00:03]} Nxc5 {[%emt 0:00:00]} 20. Bc2 {[%emt 0:00:39]} Nd3 {[%emt 0:00:00]} 21. Rb1 {[%emt 0:04:14]} Nce5 {[%emt 0:00:00]} 22. Nxe5 {[%emt 0:04:51]} Nxe5 {[%emt 0:00:00]} 23. Bb3 {[%emt 0:02:26]} Nc6 {[%emt 0:00:00]} 24. Rd1 {[%emt 0:02:04]} Rxd1+ {[%emt 0:00:00]} 25. Bxd1 {[%emt 0:00:02]} Bf6 {[%emt 0:00:00]} 26. b3 {[%emt 0:00:49]} Bd4 {[%emt 0:00:00]} 27. Bxd4 {[%emt 0:01:33]} Nxd4 {[%emt 0:00:00]} 28. f4 {[%emt 0:02:10]} Kf8 {[%emt 0:00:00]} 29. Kf2 {[%emt 0:00:19]} Ke7 {[%emt 0:00:00]} 30. Ke3 {[%emt 0:00:49]} Nf5+ {[%emt 0:00:00]} 31. Ke4 {[%emt 0:00:21]} Kd6 {[%emt 0:00:00]} 32. g4 {[%emt 0:00:38]} Ne7 {[%emt 0:00:00]} 33. b4 {[%emt 0:01:45]} b6 {[%emt 0:00:00]} 34. Kd4 {[%emt 0:03:15]} Nc6+ {[%emt 0:00:00]} 35. Kc3 {[%emt 0:00:07]} f6 {[%emt 0:00:00]} 36. Bf3 {[%emt 0:04:29]} axb4+ {[%emt 0:00:00]} 37. axb4 {[%emt 0:00:08]} Ne7 {[%emt 0:00:00]} 38. Be4 {[%emt 0:02:06]} h6 {[%emt 0:00:00]} 39. Kd4 {[%emt 0:03:01]} Nc8 {[%emt 0:00:00]} 40. h4 {[%emt 0:02:14]} g5 {[%emt 0:01:19]} 41. c5+ {[%emt 0:32:50]} bxc5+ {[%emt 0:30:53]} 42. bxc5+ {[%emt 0:00:01]} Kc7 {[%emt 0:01:54]} 43. hxg5 {[%emt 0:00:23]} hxg5 {[%emt 0:03:36]} 44. fxg5 {[%emt 0:00:10]} e5+ {[%emt 0:01:47]} 45. Kd5 {[%emt 0:00:07]} fxg5 {[%emt 0:00:00]} 46. Kxe5 {[%emt 0:00:00]} Ne7 {[%emt 0:00:00]} 47. Kf6 {[%emt 0:00:00]} Kd7 {[%emt 0:00:00]} 48. Bf5+ {[%emt 0:00:00]} Nxf5 {[%emt 0:00:00]} 49. Kxf5 {[%emt 0:00:00]} 1-0

[Event "Niedersachsen-ch B 2024"]
[Site "Verden Aller"]
[Date "2024.01.04"]
[Round "2.31"]
[White "Heckl, Philipp"]
[Black "Schiel, Lucas"]
[Result "0-1"]
[ECO "B00"]
[WhiteElo "1580"]
[BlackElo "1312"]
[Annotator "NA RC"]
[PlyCount "62"]
[EventDate "2024.01.01"]
[EventType "swiss"]
[EventCountry "GER"]
[SourceTitle "playchess.com"]
[Source "ChessBase"]
[SourceQuality "1"]
[TimeControl "40/5400+30:1800+30"]

1. e4 {[%emt 0:00:04]} e5 {[%emt 0:00:23]} 2. d4 {[%emt 0:00:09]} Nc6 {[%emt 0:01:02]} 3. d5 {[%emt 0:01:59]} Nd4 {[%emt 0:00:36]} 4. c3 {[%emt 1:30:18]} Nc6 {[%emt 0:01:57]} 5. dxc6 {[%emt 0:00:00]} bxc6 {[%emt 0:00:02]} 6. Bc4 {[%emt 0:00:00]} Nf6 {[%emt 0:02:21]} 7. Qc2 {[%emt 0:00:00]} d5 {[%emt 0:02:31]} 8. Bd3 {[%emt 0:00:00]} c5 {[%emt 0:10:22]} 9. Bb5+ {[%emt 0:00:00]} Bd7 {[%emt 0:02:13]} 10. Bxd7+ {[%emt 0:00:00]} Qxd7 {[%emt 0:00:07]} 11. exd5 {[%emt 0:00:00]} Qxd5 {[%emt 0:01:11]} 12. f3 {[%emt 0:00:00]} Rd8 {[%emt 0:11:54]} 13. Be3 {[%emt 0:00:00]} Qe6 {[%emt 0:04:37]} 14. Nd2 {[%emt 0:00:00]} Nd5 {[%emt 0:01:02]} 15. Nf1 {[%emt 0:00:00]} f5 {[%emt 0:04:14]} 16. Qa4+ {[%emt 0:00:00]} c6 {[%emt 0:03:04]} 17. O-O-O {[%emt 0:00:00]} Be7 {[%emt 0:05:35]} 18. Nh3 {[%emt 0:00:00]} f4 {[%emt 0:07:40]} 19. Bf2 {[%emt 0:00:00]} O-O {[%emt 0:03:52]} 20. Nd2 {[%emt 0:00:00]} Rb8 {[%emt 0:06:16]} 21. Ne4 {[%emt 0:00:00]} Qg6 {[%emt 0:02:35]} 22. Rhg1 {[%emt 0:00:00]} Kh8 {[%emt 0:08:11]} 23. Qc2 {[%emt 0:00:00]} c4 {[%emt 0:09:27]} 24. Neg5 {[%emt 0:00:00]} Qh6 {[%emt 0:02:42]} 25. Ne4 {[%emt 0:00:00]} Ne3 {[%emt 0:01:05]} 26. Bxe3 {[%emt 0:00:00]} fxe3 {[%emt 0:00:27]} 27. Qe2 {[%emt 0:00:00]} Rb7 {[%emt 0:01:03]} 28. Kc2 {[%emt 0:00:00]} Rfb8 {[%emt 0:00:09]} 29. Rb1 {[%emt 0:00:00]} c5 {[%emt 0:00:44]} 30. Rge1 {[%emt 0:00:00]} Qa6 {[%emt 0:00:08]} 31. Kc1 {[%emt 0:00:00]} Qxa2 {[%emt 0:01:52]} 0-1

[Event "Niedersachsen-ch B 2024"]
[Site "Verden Aller"]
[Date "2024.01.04"]
[Round "2.32"]
[White "Stockburger, Alexander"]
[Black "Fize, Aleksandrs"]
[Result "0-1"]
[ECO "C02"]
[WhiteElo "1573"]
[BlackElo "1307"]
[Annotator "NA RC"]
[PlyCount "120"]
[EventDate "2024.01.01"]
[EventType "swiss"]
[EventCountry "GER"]
[SourceTitle "playchess.com"]
[Source "ChessBase"]
[SourceQuality "1"]
[TimeControl "40/5400+30:1800+30"]

1. e4 {[%emt 0:00:02]} c5 {[%emt 0:00:05]} 2. c3 {[%emt 0:00:11]} e6 {[%emt 0:00:09]} 3. d4 {[%emt 0:00:13]} d5 {[%emt 0:00:06]} 4. e5 {[%emt 0:00:46]} Nc6 {[%emt 0:00:20]} 5. Nf3 {[%emt 0:00:51]} cxd4 {[%emt 0:00:51]} 6. cxd4 {[%emt 0:00:24]} Nge7 {[%emt 0:00:14]} 7. Bg5 {[%emt 0:00:56]} Qb6 {[%emt 0:01:03]} 8. b3 {[%emt 0:03:05]} Nf5 {[%emt 0:01:42]} 9. Bd3 {[%emt 0:02:12]} Ncxd4 {[%emt 0:02:00]} 10. O-O {[%emt 0:01:08]} Bd7 {[%emt 0:01:49]} 11. Nbd2 {[%emt 0:05:00]} Rc8 {[%emt 0:01:05]} 12. Rc1 {[%emt 0:01:09]} Bc5 {[%emt 0:00:41]} 13. Nxd4 {[%emt 0:03:14]} Nxd4 {[%emt 0:00:29]} 14. Kh1 {[%emt 0:02:29]} O-O {[%emt 0:04:05]} 15. Qh5 {[%emt 0:00:58]} g6 {[%emt 0:00:57]} 16. Qh6 {[%emt 0:00:55]} Rfe8 {[%emt 0:00:12]} 17. Bf6 {[%emt 0:02:44]} Bf8 {[%emt 0:00:13]} 18. Qg5 {[%emt 0:00:34]} Nb5 {[%emt 0:05:28]} 19. Rce1 {[%emt 0:06:03]} Qd4 {[%emt 0:05:51]} 20. Re3 {[%emt 0:04:47]} Rc3 {[%emt 0:03:11]} 21. Nf3 {[%emt 0:01:50]} Qc5 {[%emt 0:00:17]} 22. h4 {[%emt 0:03:22]} d4 {[%emt 0:00:23]} 23. Bxb5 {[%emt 0:04:05]} Qxb5 {[%emt 0:00:12]} 24. Ree1 {[%emt 0:00:25]} Qd5 {[%emt 0:02:01]} 25. Qf4 {[%emt 0:07:29]} Bb5 {[%emt 0:01:50]} 26. Rg1 {[%emt 0:01:44]} d3 {[%emt 0:00:23]} 27. h5 {[%emt 0:04:14]} Be7 {[%emt 0:02:33]} 28. Bxe7 {[%emt 0:01:32]} Rxe7 {[%emt 0:00:30]} 29. Qf6 {[%emt 0:00:17]} Qd8 {[%emt 0:00:54]} 30. hxg6 {[%emt 0:05:41]} fxg6 {[%emt 0:00:27]} 31. Re4 {[%emt 0:05:01]} Re8 {[%emt 0:02:36]} 32. Qf4 {[%emt 0:01:10]} Qe7 {[%emt 0:01:43]} 33. Rd1 {[%emt 0:01:52]} Rd8 {[%emt 0:01:36]} 34. Nd4 {[%emt 0:00:25]} Ba6 {[%emt 0:01:31]} 35. Qd2 {[%emt 0:02:01]} Rc5 {[%emt 0:01:37]} 36. Qf4 {[%emt 0:03:29]} Rdc8 {[%emt 0:03:08]} 37. Ree1 {[%emt 0:01:42]} Qf7 {[%emt 0:00:55]} 38. Qe3 {[%emt 0:01:11]} Qd7 {[%emt 0:07:36]} 39. a4 {[%emt 0:02:10]} Rd5 {[%emt 0:00:57]} 40. Nf3 {[%emt 0:01:00]} Rc2 {[%emt 0:01:36]} 41. Nd2 {[%emt 0:31:23]} Qd8 {[%emt 0:30:58]} 42. Ne4 {[%emt 0:01:08]} Rxe5 {[%emt 0:01:38]} 43. Nf6+ {[%emt 0:01:25]} Qxf6 {[%emt 0:09:15]} 44. Qxe5 {[%emt 0:00:35]} Qxe5 {[%emt 0:03:37]} 45. Rxe5 {[%emt 0:00:07]} d2 {[%emt 0:00:59]} 46. Kh2 {[%emt 0:00:57]} Kf7 {[%emt 0:33:47]} 47. b4 {[%emt 0:00:24]} Bc4 {[%emt 0:00:00]} 48. Re4 {[%emt 0:01:07]} Bb3 {[%emt 0:00:00]} 49. a5 {[%emt 0:01:18]} Rb2 {[%emt 0:00:00]} 50. Rxd2 {[%emt 0:03:08]} Rxd2 {[%emt 0:00:00]} 51. Kg3 {[%emt 0:00:10]} Bc2 {[%emt 0:00:00]} 52. Rf4+ {[%emt 0:00:56]} Bf5 {[%emt 0:00:00]} 53. Kh4 {[%emt 0:00:27]} h5 {[%emt 0:00:00]} 54. Kg5 {[%emt 0:00:35]} Ke7 {[%emt 0:00:00]} 55. g3 {[%emt 0:00:20]} a6 {[%emt 0:00:00]} 56. f3 {[%emt 0:00:05]} Rg2 {[%emt 0:00:00]} 57. g4 {[%emt 0:00:30]} hxg4 {[%emt 0:00:00]} 58. fxg4 {[%emt 0:00:24]} Rxg4+ {[%emt 0:00:00]} 59. Rxg4 {[%emt 0:00:29]} Bxg4 {[%emt 0:00:00]} 60. Kxg4 {[%emt 0:00:03]} Kd6 {[%emt 0:00:00]} 0-1

[Event "Niedersachsen-ch B 2024"]
[Site "Verden Aller"]
[Date "2024.01.04"]
[Round "2.33"]
[White "Mounce, Richard B"]
[Black "Steven, Matthias"]
[Result "1/2-1/2"]
[ECO "B22"]
[WhiteElo "1957"]
[BlackElo "1284"]
[Annotator "NA RC"]
[PlyCount "133"]
[EventDate "2024.01.01"]
[EventType "swiss"]
[EventCountry "GER"]
[SourceTitle "playchess.com"]
[Source "ChessBase"]
[SourceQuality "1"]
[TimeControl "40/5400+30:1800+30"]

1. e4 {[%emt 0:00:09]} c5 {[%emt 0:00:08]} 2. c3 {[%emt 0:00:09]} Nc6 {[%emt 0:01:05]} 3. d4 {[%emt 0:00:07]} cxd4 {[%emt 0:00:04]} 4. cxd4 {[%emt 0:00:07]} e6 {[%emt 0:01:13]} 5. Nf3 {[%emt 0:05:11]} Nf6 {[%emt 0:00:36]} 6. Nc3 {[%emt 0:00:42]} Bb4 {[%emt 0:00:12]} 7. Bd3 {[%emt 0:03:29]} d5 {[%emt 0:01:24]} 8. e5 {[%emt 0:00:50]} Nd7 {[%emt 0:01:41]} 9. a3 {[%emt 0:03:37]} Ba5 {[%emt 0:00:43]} 10. O-O {[%emt 0:00:37]} f6 {[%emt 0:02:19]} 11. exf6 {[%emt 0:04:00]} Nxf6 {[%emt 0:02:08]} 12. Bg5 {[%emt 0:09:49]} O-O {[%emt 0:01:17]} 13. Qc2 {[%emt 0:07:23]} h6 {[%emt 0:01:42]} 14. Bd2 {[%emt 0:04:32]} Bb6 {[%emt 0:02:52]} 15. Ne2 {[%emt 0:02:49]} Re8 {[%emt 0:02:45]} 16. Bg6 {[%emt 0:10:02]} Re7 {[%emt 0:02:27]} 17. Bf4 {[%emt 0:02:05]} Bc7 {[%emt 0:01:23]} 18. Rfe1 {[%emt 0:04:02]} Bd7 {[%emt 0:03:33]} 19. Rac1 {[%emt 0:02:48]} Rc8 {[%emt 0:02:23]} 20. Qd3 {[%emt 0:03:24]} Be8 {[%emt 0:01:33]} 21. b4 {[%emt 0:01:15]} a6 {[%emt 0:02:43]} 22. Bxc7 {[%emt 0:02:16]} Rcxc7 {[%emt 0:03:07]} 23. Nf4 {[%emt 0:01:43]} Qd6 {[%emt 0:02:39]} 24. g3 {[%emt 0:02:48]} e5 {[%emt 0:09:36]} 25. dxe5 {[%emt 0:00:54]} Nxe5 {[%emt 0:00:55]} 26. Nxe5 {[%emt 0:00:24]} Rxc1 {[%emt 0:01:00]} 27. Rxc1 {[%emt 0:00:57]} Qxe5 {[%emt 0:00:58]} 28. Rc8 {[%emt 0:04:12]} Kf8 {[%emt 0:00:48]} 29. Bxe8 {[%emt 0:02:15]} Qe1+ {[%emt 0:01:43]} 30. Kg2 {[%emt 0:00:33]} Rxe8 {[%emt 0:00:44]} 31. Rxe8+ {[%emt 0:00:35]} Kxe8 {[%emt 0:00:07]} 32. Nxd5 {[%emt 0:01:22]} Qe4+ {[%emt 0:01:13]} 33. Qxe4+ {[%emt 0:00:19]} Nxe4 {[%emt 0:00:08]} 34. f3 {[%emt 0:02:27]} Nd2 {[%emt 0:00:16]} 35. Kf2 {[%emt 0:01:07]} Kd7 {[%emt 0:01:37]} 36. Ke2 {[%emt 0:02:02]} Nc4 {[%emt 0:01:03]} 37. a4 {[%emt 0:00:23]} Kd6 {[%emt 0:01:11]} 38. Nc3 {[%emt 0:03:29]} Ne5 {[%emt 0:01:57]} 39. Ke3 {[%emt 0:02:07]} Nc6 {[%emt 0:01:49]} 40. b5 {[%emt 0:03:54]} axb5 {[%emt 0:00:22]} 41. Nxb5+ {[%emt 0:30:26]} Kc5 {[%emt 0:31:10]} 42. Nc3 {[%emt 0:01:12]} Kb4 {[%emt 0:01:28]} 43. Nd5+ {[%emt 0:00:48]} Kxa4 {[%emt 0:00:45]} 44. Kf4 {[%emt 0:00:34]} Kb5 {[%emt 0:00:14]} 45. Kf5 {[%emt 0:02:49]} Nd4+ {[%emt 0:00:31]} 46. Kg6 {[%emt 0:00:43]} Nxf3 {[%emt 0:00:24]} 47. h4 {[%emt 0:00:48]} Nd4 {[%emt 0:01:17]} 48. g4 {[%emt 0:02:56]} Kc5 {[%emt 0:01:15]} 49. Nc3 {[%emt 0:00:30]} Ne6 {[%emt 0:00:29]} 50. Kf7 {[%emt 0:01:01]} Kd6 {[%emt 0:00:45]} 51. Nb5+ {[%emt 0:00:44]} Ke5 {[%emt 0:02:08]} 52. g5 {[%emt 0:01:27]} hxg5 {[%emt 0:03:50]} 53. hxg5 {[%emt 0:00:12]} Nxg5+ {[%emt 0:00:07]} 54. Kxg7 {[%emt 0:00:09]} Kd5 {[%emt 0:00:07]} 55. Kf6 {[%emt 0:00:43]} Kc5 {[%emt 0:01:16]} 56. Nc3 {[%emt 0:00:38]} Kc4 {[%emt 0:00:31]} 57. Nb1 {[%emt 0:00:50]} Ne4+ {[%emt 0:01:01]} 58. Ke5 {[%emt 0:00:25]} Nc3 {[%emt 0:02:18]} 59. Nd2+ {[%emt 0:00:39]} Kb4 {[%emt 0:00:51]} 60. Kd4 {[%emt 0:01:12]} b5 {[%emt 0:01:37]} 61. Kd3 {[%emt 0:00:00]} Na4 {[%emt 0:00:00]} 62. Kc2 {[%emt 0:00:00]} Nb6 {[%emt 0:00:00]} 63. Ne4 {[%emt 0:00:00]} Ka3 {[%emt 0:00:00]} 64. Nd6 {[%emt 0:00:00]} b4 {[%emt 0:00:00]} 65. Nb5+ {[%emt 0:00:00]} Ka4 {[%emt 0:00:00]} 66. Nc3+ {[%emt 0:00:00]} Ka5 {[%emt 0:00:00]} 67. Na2 {[%emt 0:00:00]} 1/2-1/2